Workbook

Sheet Introduction
B3: KSU-HomeWastewaterTreatment
B5: An Excel spreadsheet program to estimate the economic costs of wastewater treatment systems for homeowners.
L8: Version- 5.5.2016
B28: INTRODUCTION
B29: KSU-HomeWastewaterTreatment is designed to evaluate the costs of installing a wastewater system over the useful life of the investment.
B31: INSTRUCTIONS FOR THE USER:
B32: Be sure to "Enable Content" and "Enable Macros" for the spreadsheet to function correctly.
B33: Visit the Description sheet which displays examples of wastewater treatment systems and other resources of information. Then proceed to the Inputs sheet and enter your data on costs of home wastewater treatment systems construction and operation. View Econ Analysis and Budget to see the analysis of these costs.
B39: Some of the sheets contain a Print Screen button. Clicking on this button will print only the screen that you are viewing. On the Inputs sheet, there is a Print Entire Report button which will print every sheet in the workbook.
B44: FOR MORE INFORMATION:
B45: Several of the cells have a red triangle in the upper right hand corner of the cell. By moving your mouse cursor over this triangle, a brief description of the cell will be displayed on the screen.
B52: If you have questions, please contact:
B55: Jeff Williams | H55: Originally Developed in Cooperation with:
B56: Professor | H56: Craig Smith
B57: Department of Agricultural Economics | H57: Watershed Economist
B58: Kansas State University | H58: Kansas State University
B59: jwilliam@ksu.edu
B60: 785-532-4491
B62: ACKNOWLEDGEMENTS:
B63: The developers would like to express their appreciation for the helpful comments and contributions of Morgan Powell, John Leatherman, and Richard Llewelyn on this or earlier versions of this spreadsheet.
B66: Funded in part through the Kansas Department of Health and Environment by U.S. EPA Section 319 Funds in support of Kansas Watershed Restoration and Protection Strategies (WRAPS).
B68: Copyright 2016 AgManager.info, K-State Department of Agricultural Economics

Sheet Description
B28: FOR MORE INFORMATION:
B30: A Homeowner's Guide to Septic Systems
B31: https://www3.epa.gov/npdes/pubs/homeowner_guide_long.pdf
B32: Get to Know Your Septic System
B33: http://www.bookstore.ksre.ksu.edu/pubs/MF2179.pdf
B34: Your Wastewater System Owner/Operator Manual
B35: http://www.bookstore.ksre.ksu.edu/pubs/S90.pdf
B36: Wastewater Flow and Characteristics
B37: http://ehs.ncpublichealth.com/oet/docs/cit/oswpmod/wastewaterCharcFlow.pdf
B38: Why do Onsite Wastewater (Septic) Systems Fail?
B39: http://www.bookstore.ksre.ksu.edu/pubs/MF946.pdf
B40: Wastewater Pond (Lagoon) Design and Construction
B41: http://www.bookstore.ksre.ksu.edu/pubs/MF1044.pdf
B42: Wastewater Pond (Lagoon) Operation, Maintenance and Repair
B43: https://www.bookstore.ksre.ksu.edu/pubs/MF2290.pdf
B44: Septic Tank Maintenance: A Key to Longer Septic System Life
B45: http://bookstore.ksre.k-state.edu/pubs/MF947.pdf

Sheet Inputs
B1: Please contact a contractor for accurate cost estimates. | D1: *Pay attention to Units!
B2: Installation and Construction Costs
B3: Septic Tank | C3: 1000 | D3: dollars | J3: 1
B4: Absorption Field | C4: 2500 | D4: dollars | J4: 2
B5: Lagoon Construction | C5: 0 | D5: dollars | J5: 3
B6: Labor | C6: 500 | D6: dollars | J6: 4
B7: Machine Hire | C7: 350 | D7: dollars | J7: 5
B8: Other Materials | C8: 220 | D8: dollars | J8: 6
B9: Other Costs | C9: 230 | D9: dollars | J9: 7
B10: Land Cost | C10: 0 | D10: dollars | J10: 8
B11: TOTAL ONE TIME COSTS | C11: =SUM(C3:C10) -> 4800 | D11: dollars | J11: 9
J12: 10
B13: Maintenance Costs | J13: 11
B14: Annual Maintenance Cost | C14: 40 | D14: dollars / year | J14: 12
B15: Inflation Rate for Maintenance Cost | C15: 0.03 | D15: percent | J15: 13
J16: 14
B17: Financial Assistance | J17: 15
B18: Construction Cost Share Payment | C18: 1000 | D18: dollars | J18: 16
B19: Annual Incentive Payment | C19: 0 | D19: dollars | J19: 17
B20: Years for Annual Payment | C20: 0 | D20: years | J20: 18
J21: 19
B22: Other Data | J22: 20
B23: Opportunity Cost of Your Money | C23: 0.05 | D23: percent | J23: 21
B24: System Life | C24: 28 | D24: years | J24: 22
J25: 23
J26: 24
J27: 25
J28: 26
J29: 27
J30: 28
J31: 29
J32: 30
E47: 10
E48: 11
E49: 12
E50: 13
E51: 14
E52: 15

Sheet Econ Analysis
B2: Wastewater Treatment System: Economic Analysis
B3: The first year out-of-pocket costs of the wastewater treatment system would be | G3: =Budget!H3 -> 3800 | H3: this accounts for any financial assistance you may receive.
B4: On average, the wastewater treatment system you described will cost | F4: =Budget!F37 -> 4632.728415 | G4: ="in total over the "&Inputs!C24&" year design life of the system." -> in total over the 28 year design life of the system.
B5: This is equal to a | C5: =Budget!H5 -> 311 | D5: cost per year or approximately | E5: =Budget!H6 -> 26 | F5: per month over the same time period.
B47: In order to effectively evaluate costs and returns which occur over multiple years (2 to 30 years), we must convert all costs and returns to today's dollars.
B49: Net Present Value calculations convert future values into today's dollars. The net present value analysis uses a discount factor to equate a series of future cash flows into an equivalent amount of cash today. Because a dollar today can earn interest until next year, it will be valued more highly than a dollar received in the future
B50: For home wastewater treatment system assistance, be sure to contact your local health department or extension office. A Health Department Directory
B51: can be found at: | C51: http://www.kdheks.gov/olrh/download/health_directory.pdf
B60: Limitation of Liability:
B62: This computer program is distrubuted by Kansas State University on an "as is" basis, without warranty. Kansas State University and the authors of this software will have no liability or responsibility to the cooperator or any other person or entity with respect to any liability, loss, or damage caused, or alleged to be caused, directly or indirectly by programs sold or given away by Kansas State University or the authors. This includes but is not limited to, any interruption of service, loss of business or anticipatory profits, or consequential damages resulting from user or operation, and in no event will Kansas State University or the authors be liable for loss of profits or indirect, special, or consequential damages arising from the use of the software provided by Kansas State University or the authors.

Sheet Budget
B2: Lifecycle Cost Analysis of Home Wastewater Treatment Systems
B3: Year | C3: Installation & Construction | D3: Financial Assistance | E3: Annual Incentives | F3: Maintenance Costs | H3: =ROUND(C5-D5,0) -> 3800
H4: =ROUND(F37,0) -> 4633
B5: 0 | C5: =Inputs!C11 -> 4800 | D5: =Inputs!C18 -> 1000 | H5: =ROUND(F38,0) -> 311
B6: 1 | E6: =Inputs!C19 -> 0 | F6: =Inputs!C14 -> 40 | H6: =ROUND(F39,0) -> 26
B7: 2 | E7: =IF(B7<=Inputs!$C$20,E6, 0) -> 0 | F7: =IF(B7<=Inputs!$C$24,F6*(1+Inputs!$C$15),0) -> 41.2
B8: 3 | E8: =IF(B8<=Inputs!$C$20,E7, 0) -> 0 | F8: =IF(B8<=Inputs!$C$24,F7*(1+Inputs!$C$15),0) -> 42.436
B9: 4 | E9: =IF(B9<=Inputs!$C$20,E8, 0) -> 0 | F9: =IF(B9<=Inputs!$C$24,F8*(1+Inputs!$C$15),0) -> 43.70908
B10: 5 | E10: =IF(B10<=Inputs!$C$20,E9, 0) -> 0 | F10: =IF(B10<=Inputs!$C$24,F9*(1+Inputs!$C$15),0) -> 45.0203524
B11: 6 | E11: =IF(B11<=Inputs!$C$20,E10, 0) -> 0 | F11: =IF(B11<=Inputs!$C$24,F10*(1+Inputs!$C$15),0) -> 46.37096297
B12: 7 | E12: =IF(B12<=Inputs!$C$20,E11, 0) -> 0 | F12: =IF(B12<=Inputs!$C$24,F11*(1+Inputs!$C$15),0) -> 47.76209186
B13: 8 | E13: =IF(B13<=Inputs!$C$20,E12, 0) -> 0 | F13: =IF(B13<=Inputs!$C$24,F12*(1+Inputs!$C$15),0) -> 49.19495462
B14: 9 | E14: =IF(B14<=Inputs!$C$20,E13, 0) -> 0 | F14: =IF(B14<=Inputs!$C$24,F13*(1+Inputs!$C$15),0) -> 50.67080326
B15: 10 | E15: =IF(B15<=Inputs!$C$20,E14, 0) -> 0 | F15: =IF(B15<=Inputs!$C$24,F14*(1+Inputs!$C$15),0) -> 52.19092735
B16: 11 | E16: =IF(B16<=Inputs!$C$20,E15, 0) -> 0 | F16: =IF(B16<=Inputs!$C$24,F15*(1+Inputs!$C$15),0) -> 53.75665517
B17: 12 | E17: =IF(B17<=Inputs!$C$20,E16, 0) -> 0 | F17: =IF(B17<=Inputs!$C$24,F16*(1+Inputs!$C$15),0) -> 55.36935483
B18: 13 | E18: =IF(B18<=Inputs!$C$20,E17, 0) -> 0 | F18: =IF(B18<=Inputs!$C$24,F17*(1+Inputs!$C$15),0) -> 57.03043547
B19: 14 | E19: =IF(B19<=Inputs!$C$20,E18, 0) -> 0 | F19: =IF(B19<=Inputs!$C$24,F18*(1+Inputs!$C$15),0) -> 58.74134854
B20: 15 | E20: =IF(B20<=Inputs!$C$20,E19, 0) -> 0 | F20: =IF(B20<=Inputs!$C$24,F19*(1+Inputs!$C$15),0) -> 60.50358899
B21: 16 | E21: =IF(B21<=Inputs!$C$20,E20, 0) -> 0 | F21: =IF(B21<=Inputs!$C$24,F20*(1+Inputs!$C$15),0) -> 62.31869666
B22: 17 | E22: =IF(B22<=Inputs!$C$20,E21, 0) -> 0 | F22: =IF(B22<=Inputs!$C$24,F21*(1+Inputs!$C$15),0) -> 64.18825756
B23: 18 | E23: =IF(B23<=Inputs!$C$20,E22, 0) -> 0 | F23: =IF(B23<=Inputs!$C$24,F22*(1+Inputs!$C$15),0) -> 66.11390529
B24: 19 | E24: =IF(B24<=Inputs!$C$20,E23, 0) -> 0 | F24: =IF(B24<=Inputs!$C$24,F23*(1+Inputs!$C$15),0) -> 68.09732245
B25: 20 | E25: =IF(B25<=Inputs!$C$20,E24, 0) -> 0 | F25: =IF(B25<=Inputs!$C$24,F24*(1+Inputs!$C$15),0) -> 70.14024212
B26: 21 | E26: =IF(B26<=Inputs!$C$20,E25, 0) -> 0 | F26: =IF(B26<=Inputs!$C$24,F25*(1+Inputs!$C$15),0) -> 72.24444939
B27: 22 | E27: =IF(B27<=Inputs!$C$20,E26, 0) -> 0 | F27: =IF(B27<=Inputs!$C$24,F26*(1+Inputs!$C$15),0) -> 74.41178287
B28: 23 | E28: =IF(B28<=Inputs!$C$20,E27, 0) -> 0 | F28: =IF(B28<=Inputs!$C$24,F27*(1+Inputs!$C$15),0) -> 76.64413635
B29: 24 | E29: =IF(B29<=Inputs!$C$20,E28, 0) -> 0 | F29: =IF(B29<=Inputs!$C$24,F28*(1+Inputs!$C$15),0) -> 78.94346045
B30: 25 | E30: =IF(B30<=Inputs!$C$20,E29, 0) -> 0 | F30: =IF(B30<=Inputs!$C$24,F29*(1+Inputs!$C$15),0) -> 81.31176426
B31: 26 | E31: =IF(B31<=Inputs!$C$20,E30, 0) -> 0 | F31: =IF(B31<=Inputs!$C$24,F30*(1+Inputs!$C$15),0) -> 83.75111719
B32: 27 | E32: =IF(B32<=Inputs!$C$20,E31, 0) -> 0 | F32: =IF(B32<=Inputs!$C$24,F31*(1+Inputs!$C$15),0) -> 86.2636507
B33: 28 | E33: =IF(B33<=Inputs!$C$20,E32, 0) -> 0 | F33: =IF(B33<=Inputs!$C$24,F32*(1+Inputs!$C$15),0) -> 88.85156022
B34: 29 | E34: =IF(B34<=Inputs!$C$20,E33, 0) -> 0 | F34: =IF(B34<=Inputs!$C$24,F33*(1+Inputs!$C$15),0) -> 0
B35: 30 | E35: =IF(B35<=Inputs!$C$20,E34, 0) -> 0 | F35: =IF(B35<=Inputs!$C$24,F34*(1+Inputs!$C$15),0) -> 0
B36: PV >> | C36: =C5 -> 4800 | D36: =D5 -> 1000 | E36: =NPV(Inputs!$C$23,E6:E35) -> 0 | F36: =NPV(Inputs!$C$23,F6:F35) -> 832.7284154
E37: Total Present Value >>> | F37: =C36-D36-E36+F36 -> 4632.728415
E38: Annualized Cost >>> | F38: =(Inputs!$C$23/(1-(1+Inputs!$C$23)^-Inputs!$C$24))*$F$37 -> 310.960454
E39: Monthly Cost >>> | F39: =((Inputs!$C$23/12)/(1-(1+(Inputs!$C$23/12))^(-Inputs!$C$24*12)))*$F$37 -> 25.64557772
